Cogmind - Beta 17 @@@ ROGUE MODE // 2026.07.16 @ 22:40:57 Player: VFX Result: Destroyed by E9-773(R) with Subdweller Beam Cannon Performance ------------- Evolutions (0) 0 Regions Visited (2) 400 Robots Destroyed (14) 70 Value Destroyed (532) 532 Prototype IDs (0) 0 Alien Tech Used (0) 0 Bonus (0) 0 TOTAL SCORE: 1002 Bonus ------- None Cogmind --------- Core Integrity 0/250 Matter 93/300 Energy 265/265 System Corruption 0% Temperature Cool (9) Movement Walking (190) Ox1 Location -10/Subcaves Parts ------- > --- POWER (1) -------- Improved Ion Engine > --- PROPULSION (2) --- Aluminum Leg Aluminum Leg > --- UTILITY (2) ------ Large Storage Unit Terrain Scan Processor > --- WEAPON (2) ------- Light Assault Rifle Grenade Launcher > --- INVENTORY (15) --- Ion Engine Improved Ion Engine Improved Ion Engine Light Nuclear Core Light Treads Light Treads Aluminum Leg Grenade Launcher Peak State ------------ > --- POWER ------------ Improved Ion Engine > --- PROPULSION ------- Aluminum Leg Aluminum Leg > --- UTILITY ---------- Small Storage Unit Terrain Scan Processor > --- WEAPON ----------- Light Assault Rifle Grenade Launcher > --- INVENTORY -------- Ion Engine Improved Ion Engine Improved Ion Engine Light Nuclear Core Light Treads Light Treads Aluminum Leg [Rating: 10] Favorites ----------- Power Improved Ion Engine Engine Improved Ion Engine Propulsion Aluminum Leg Leg Aluminum Leg Utility Small Storage Unit Device Sensor Array Storage Small Storage Unit Processor Terrain Scan Processor Weapon Light Assault Rifle Energy Gun Medium Laser Ballistic Gun Light Assault Rifle Launcher Grenade Launcher Build | -11 -10 -10 ------- Run | Yrd Mat Sub Slots Evolved . | . . . Power . | . . . Propulsion . | . . . Utility . | . . . Weapon . | . . . Parts Attached 18 | 6 12 . Power 4 | 1 3 . Engine 4 | 1 3 . Core . | . . . Reactor . | . . . Propulsion 5 | 2 3 . Treads . | . . . Leg 5 | 2 3 . Wheel . | . . . Hover . | . . . Flight . | . . . Utility 4 | 1 3 . Device 1 | . 1 . Storage 2 | 1 1 . Processor 1 | . 1 . Hackware . | . . . Protection . | . . . Artifact . | . . . Weapon 5 | 2 3 . Energy Gun 2 | 2 . . Energy Cannon . | . . . Ballistic Gun 1 | . 1 . Ballistic Cannon . | . . . Launcher 2 | . 2 . Special Weapon . | . . . Impact Weapon . | . . . Slashing Weapon . | . . . Piercing Weapon . | . . . Special Melee Weapon . | . . . Unidentified Prototypes . | . . . Parts Lost 5 | . 5 . Power 1 | . 1 . Propulsion 1 | . 1 . Utility 1 | . 1 . Weapon 2 | . 2 . Highest Loss Streak 5 | . 5 . To Critical Strikes . | . . . Average Backups 6 | 1 7 8 Power 3 | . 3 4 Propulsion 2 | . 2 3 Utility . | . . . Weapon . | . . 1 Tool/Special . | . . . Unused Backups 6 | . 1 5 Power 4 | . 1 3 Propulsion 2 | . . 2 Utility . | . . . Weapon . | . . . Tool/Special . | . . . Average Slot Usage (%) 94 | . 93 100 Engine 12 | . 12 14 Leg 27 | . 27 28 Device 4 | . 4 . Storage 14 | . 14 14 Processor 7 | . 6 14 Energy Gun 8 | . 9 . Ballistic Gun 9 | . 8 14 Launcher 8 | . 7 14 Peak Build Rating 10 | 6 10 10 Average Rating 8 | 4 8 10 On Entrance 5 | . 6 10 Avg Prop Armor Cover (%) . | . . . Naked Turns . | . . . Heaviest Build 31 | 12 31 31 Greatest Support 20 | 20 20 20 Greatest Overweight (x) 3 | 3 1 1 Average Overweight (x) . | . . 1 Largest Inventory Capacity 15 | 8 15 15 Average Capacity 10 | 7 10 15 Most Carried 8 | 4 8 8 Average Carried 7 | 2 7 8 Final Capacity 15 | 8 15 15 Final Carried 8 | 4 8 8 Class Distribution -------------------- 100% | Mutant Dominant Class ---------------- Mutant | -10/Materials Mutant | -10/Subcaves Resources | -11 -10 -10 ----------- Run | Yrd Mat Sub Matter Collected 318 | 260 58 . Remotely . | . . . Salvage Created 452 | . 401 51 Parts 28 | . 24 4 Haulers Intercepted . | . . . Recyclers Shooed . | . . . Parts Field Recycled . | . . . Retrieved Matter . | . . . Parts Self-Destructed . | . . . Prevented . | . . . Parts Restored . | . . . Kills | -11 -10 -10 ------- Run | Yrd Mat Sub Combat Hostiles Destroyed 13 | . 12 1 Guns 3 | . 3 . AOE 10 | . 9 1 Classes Destroyed 3 | . 2 1 Builder 1 | . 1 . Grunt 12 | . 12 . Subdweller 1 | . . 1 Best Kill Streak 6 | . 6 1 Combat Bots Only 5 | . 5 1 Max Kills in Single Turn 2 | . 2 1 Gunslinging . | . . . Exploded 1 | . 1 1 Melee . | . . . Uniques/NPCs Destroyed . | . . . Combat | -11 -10 -10 -------- Run | Yrd Mat Sub Hostile Shots Fired 72 | . 71 1 Missed 12 | . 12 . Hits 60 | . 59 1 Projectile 60 | . 59 1 Critical Strikes 1 | . 1 . Damage Taken 832 | . 806 26 Core 263 | . 237 26 Absorbed by Shields . | . . . Core Remaining (%) 100 | 100 . . Volleys Fired 40 | . 39 1 Largest 2 | . 2 1 Hottest 90 | . 90 30 Shots Fired 46 | . 45 1 Gun 32 | . 32 . Cannon . | . . . Launcher 14 | . 13 1 Special . | . . . Kinetic 20 | . 20 . Thermal 8 | . 8 . Explosive 14 | . 13 1 Electromagnetic 4 | . 4 . Robot Hit Streak 7 | . 7 . Robot Miss Streak 3 | . 3 . Penetration Max . | . . . Secondary Targets . | . . . Shots Hit Robots 23 | . 23 . Core Hits 26 | . 25 1 Critical Kills . | . . . Critical Parts Destroyed . | . . . Critical Strikes . | . . . Melee Attacks . | . . . Impact . | . . . Slashing . | . . . Piercing . | . . . Sneak Attacks . | . . . Combat Hostiles . | . . . Follow-up Attacks . | . . . Damage Inflicted 847 | . 767 80 Guns 162 | . 162 . Cannons . | . . . Explosions 685 | . 605 80 Melee . | . . . Ramming . | . . . Kinetic 98 | . 98 . Thermal 64 | . 64 . Explosive 685 | . 605 80 Electromagnetic . | . . . Impact . | . . . Slashing . | . . . Piercing . | . . . Highest Corruption . | . . . Average Corruption . | . . . Corruption Purged . | . . . Corruption Blocked . | . . . Overload Shots . | . . . Overflow Damage 4 | . 4 . Projectiles . | . . . Explosions 4 | . 4 . Melee . | . . . Knockbacks . | . . . Impact . | . . . Kinetic . | . . . Secondary . | . . . Self-Inflicted Damage . | . . . Shots . | . . . Rammed . | . . . Targets Rammed . | . . . Kicked . | . . . Crushed . | . . . Highest Temperature 371 | . 371 . Average Temperature 163 | . 163 . Received Heat Transfer 480 | . 471 9 Effects 1 | . 1 . Energy Bleed 1 | . 1 . Siege Activations . | . . . Martial Activations . | . . . Shielding Activations . | . . . Robots Disrupted . | . . . Combat Hostiles . | . . . Robots Corrupted . | . . . Combat Hostiles . | . . . Parts Fried . | . . . Impact Corruptions . | . . . Robots Melted . | . . . Combat Hostiles . | . . . Parts Melted . | . . . Heat Transferred 185 | . 185 . Parts Sabotaged . | . . . Parts Stolen . | . . . Parts Stripped . | . . . Power Chain Reactions . | . . . Alert | -11 -10 -10 ------- Run | Yrd Mat Sub Maximum Alert Level 1 | . 1 . Low Security (%) 67 | 100 64 . Level 1 32 | . 35 . Level 2 . | . . . Level 3 . | . . . Level 4 . | . . . Level 5 . | . . . High Security . | . . . Max Security . | . . . Peak Influence 317 | . 317 . Initial . | . . . Average 100 | . 109 . Influence Increases 464 | . 464 . Destroy 0b10 Robot/C 240 | . 240 . Destroy 0b10 Robot/NC 5 | . 5 . Destroy Leader 40 | . 40 . Disable Machine 60 | . 60 . Destroy Structure 44 | . 44 . Lose Combat Pursuer 75 | . 75 . Influence Decreases 404 | . 251 153 Entered New Map 103 | . . 103 Time Decay 281 | . 231 50 Lost Part 20 | . 20 . Squads Dispatched 1 | . 1 . Investigation 1 | . 1 . Extermination . | . . . Reinforcement . | . . . Assault . | . . . Garrison . | . . . Intercept . | . . . Searches Triggered . | . . . Construction Impeded . | . . . Haulers Reinforced . | . . . Active Scanning Responses . | . . . Cargo Convoy Interrupts . | . . . Stealth | -11 -10 -10 --------- Run | Yrd Mat Sub Distress Signals 2 | . 2 . Communications Jammed . | . . . Distress Signals . | . . . Times Spotted 23 | . 21 2 Peak Tracking Total 5 | . 5 2 Tactical Retreats 4 | . 4 . Traps | -11 -10 -10 ------- Run | Yrd Mat Sub Traps Triggered 1 | . 1 . Indirectly . | . . . Trap Hack Attempts . | . . . Triggered . | . . . Disarmed . | . . . Reprogrammed . | . . . Reused . | . . . Traps Extracted . | . . . Installed . | . . . Triggered . | . . . Machines | -11 -10 -10 ---------- Run | Yrd Mat Sub Machines Disabled 4 | . 4 . Max in Single Turn 1 | . 1 . Machines Repaired . | . . . Machines Dismantled . | . . . Machines Sabotaged . | . . . Overloaded Fab Kills . | . . . Hacking | -11 -10 -10 --------- Run | Yrd Mat Sub Machines Accessed 2 | . 2 . Terminals 2 | . 2 . Fabricators . | . . . Repair Stations . | . . . Recycling Units . | . . . Scanalyzers . | . . . Garrison Access . | . . . Total Hacks 2 | . 2 . Successful 2 | . 2 . Failed . | . . . Catastrophic . | . . . Database Lockouts . | . . . Manual . | . . . Terminals 2 | . 2 . Fabricators . | . . . Repair Stations . | . . . Recycling Units . | . . . Scanalyzers . | . . . Garrison Access . | . . . Terminal Hacks 2 | . 2 . Record 1 | . 1 . Locate Traps 1 | . 1 . Fabricator Hacks . | . . . Repair Station Hacks . | . . . Recycling Unit Hacks . | . . . Scanalyzer . | . . . Garrison Access Hacks . | . . . Unauthorized Hacks . | . . . Terminals . | . . . Fabricators . | . . . Repair Stations . | . . . Recycling Units . | . . . Scanalyzers . | . . . Garrison Access . | . . . Data Cores Recovered . | . . . Used . | . . . Hacking Detections . | . . . Full Trace Events . | . . . Feedback Events . | . . . Feedback Blocked . | . . . Robot Schematics Acquired . | . . . Robots Built . | . . . Authchips . | . . . Time . | . . . Total Robot Build Rating . | . . . Part Schematics Acquired . | . . . Parts Built . | . . . Authchips . | . . . Time . | . . . Total Part Build Rating . | . . . Part Studies Acquired . | . . . Parts Repaired . | . . . Time . | . . . Parts Recycled . | . . . Recycled Matter . | . . . Retrieved Matter . | . . . Retrieved Components . | . . . Parts Scanalyzed . | . . . Part Schematics Acquired . | . . . Parts Damaged . | . . . Bothacking | -11 -10 -10 ------------ Run | Yrd Mat Sub Used RIF Installer . | . . . Robots Hacked . | . . . Non-combat . | . . . Combat . | . . . Robot Hacks Applied . | . . . Relay Couplers Released . | . . . Fabnet Peak Effective % . | . . . Robots Rewired . | . . . Allies Hacked . | . . . Hacks Repelled . | . . . Allies | -11 -10 -10 -------- Run | Yrd Mat Sub Total Allies . | . . . Largest Group . | . . . Highest-Rated Group . | . . . Highest-Rated Ally . | . . . Total Orders . | . . . Ally Attacks . | . . . Total Damage . | . . . Kills . | . . . Allies Corrupted . | . . . Allies Melted . | . . . Intel | -11 -10 -10 ------- Run | Yrd Mat Sub Active Infowar (turns) 266 | . 266 . Sensors 266 | . 266 . Robot Analysis Total . | . . . Derelict Logs Recovered . | . . . Drone Launches . | . . . Drone Recoveries . | . . . Exploration | -11 -10 -10 ------------- Run | Yrd Mat Sub Turns Passed 934 | 63 766 105 Spaces Moved 466 | 43 368 55 Core 17 | 17 . . Treads . | . . . Legs 449 | 26 368 55 Wheels . | . . . Hover . | . . . Flight . | . . . Fastest Speed 50 | 50 120 190 Average Speed 136 | 116 131 190 Slowest Speed 200 | 200 190 190 Overloaded Moves . | . . . Propulsion Burnouts . | . . . Robots Hopped . | . . . Potential Cave-ins . | . . . Cave-ins Triggered . | . . . Exploration Rate (%) 20 | 4 50 6 Regions Visited 2 Branch Regions 1 Pre-discovered Areas . | . . . Known Exits Taken . | . . . Unknown Exits Taken 2 | 1 1 . Scrap Searched . | . . . Spaces Dug . | . . . Terrain Destroyed 56 | . 52 4 Melee . | . . . Projectile . | . . . AOE 56 | . 52 4 Terrain Rammed . | . . . Walls Destroyed . | . . . Machines Disabled . | . . . Actions | -11 -10 -10 --------- Run | Yrd Mat Sub Total 718 | 52 610 56 Wait 178 | . 178 . Move 464 | 42 367 55 Hop . | . . . Pick Up 10 | 4 6 . Fast Attach 12 | 6 6 . Attach 2 | . 2 . Detach 2 | . 2 . Swap 5 | . 5 . Drop 5 | . 5 . Fire 40 | . 39 1 Melee . | . . . Ram . | . . . Kick . | . . . Crush . | . . . Escape Stasis . | . . . Rewire . | . . . Trap . | . . . Miscellaneous . | . . . Route ------- -11/Scrapyard -10/Materials (discovered 3 exits: [*Mat] / [*Min] / [*Sub]) -10/Subcaves History --------- Turn | Location | Event 5 | -11/Scrapyard | Discovered new exit (range 15) 64 | -11/Scrapyard | Entered Materials 176 | -10/Materials | Discovered new exit (range 16) 306 | -10/Materials | Build established: Mutant 330 | -10/Materials | Core integrity fell below 50% 358 | -10/Materials | Core integrity fell below 20% 384 | -10/Materials | Lost 5 parts (1p1n1u2w) 537 | -10/Materials | Discovered new exit (range 16) 787 | -10/Materials | Discovered new exit (range 8) 830 | -10/Materials | Entered Subcaves 831 | -10/Subcaves | Approached by a straggling Scientist 861 | -10/Subcaves | A swath of the cavern ceiling suddenly collapsed 935 | -10/Subcaves | Destroyed by E9-773(R) with Subdweller Beam Cannon Last Messages --------------- 00830_ U-05 Engineer lays Concrete. LOCATION=UNKNOWN AMBIENT_HEAT=-10 GOAL=ESCAPE 00831_ DM-978(c): "Thank the algorithms! I was beginning to lose hope I'd never make it past all the Subs lurking out here." 00834_ DM-978(c): "Hey, let me tag along and I can get us both out of this nasty situation. At least I think I can... The group I got separated from was talking about a shortcut back to the UFD." A swath of the cavern ceiling suddenly collapses. DM-978(c): "I think it's somewhere northwest of here" 00931_ Subatomizers dissect the Sml. Storage Unit. DM-978(c): "I think it's somewhere west of here" 00935_ L4-JCM(R) destroyed. Map ----- +----------------------------------------------------+ | ?????????????????????????????????????????????????? | | ?????????????????????????????????????????????????? | | ?????????????????????????????????????????????????? | | ?????????????????????????????????????????????????? | | ?????????????????????????????????????????????????? | | ?????????????????????????????????????????????????? | | ?????????????????????????????????????????????????? | | ?????????????????????????????????????????????????? | | ?????????????????????????????????????????????????? | | ?????????????????????????????????????????????????? | | ?????????????????????????????????????????????????? | | ?????????????????????????????????????????????????? | | ?????????????????????????????????????????????????? | | ?????????????????????????????????????????????????? | | ?????????????? ??????????????????????????????????? | | ?????????????? ?????????????????????????????????? | | ?????????????? ##??????????????????????????????? | | ??????????????? ?????????????????????????????? | | ????????????????# ????????????????????????????? | | ????????????????? ????????????????????????????? | | ?????????????###?? ???????????????????????????? | | ??????????? ## ;## ??????###?????????????????? | | ??????????? !% ??#### #?????????????????? | | ??????????# ### #?????????????????? | | ??????????# ##???##???????????? | | ??????????# @ ##??? ???????????? | | ??????????????# " # # ##?## ????????### | | ??????????????# ###### ### ??????? # | | ?????????????"""* & ??????## ### ##????? | | ?????????????"" % & ????????#### ## #??## | | ?????????????" R!& #????????????# #?# ### | | ????????????# """??????????????# #??# | | ????????????"?"""???????????????# ##??? | | ????????????????????????????????# ###??# | | ????????????????????????????????#### #### # | | ???????????????????????????????????## #? | | ????????????????????????????????????# #? | | ????????????????????????????????????# #####? | | ????????????????????????????????????# ###### | | ????????????????????????????????????# ## # | | ????????????????????????????????????## # | | ?????????????????????????????????????### | | ?????????????????????????????????????### | | ?????????????????????????????????????# ## | | ?????????????????????????????????????# ### | | ?????????????????????????????????????## ## ###?# | | ??????????????????????????????????????##?# ##??# | | ?????????????????????????????????????????# # ?? # | | ?????????????????????????????????????????### " | | ???????????????????????????????????????????? # ? | +----------------------------------------------------+ Best States ------------- Heat Dissipation 25 Energy Generation 12 Energy Capacity 265 Matter Stores 300 Matter Capacity 300 Sight Range 16 Robot Scan Range 14 Terrain Scan Density 85 Evasion (%) 55 Item Schematics ----------------- None Robot Schematics ------------------ None Fabricated ------------ Nothing Repaired ---------- Nothing Studied --------- None Alien Tech Used ----------------- None Achievements -------------- None Challenges ------------ None Game ------ Seed WardroneSmartbombVibroblade Manual? 0 Play Time 00:09:17 Cumulative 9.2 hours Start 2026.07.16 @ 22:32:19 End 2026.07.16 @ 22:40:57 Sessions 1 Manual Loads 0 Difficulty Rogue Special Mode None Game No. 13 Rogue 13 Adventurer 0 Explorer 0 Win Type - Total 0 Types 0/0/0/0/0/0/0/0/0/0 Lore% 6 Gallery% 9 Achievement% 8 Wizard Run 0 Options --------- Layout 1 ASCII 0 Keyboard 0 Movement Mouse Keybinds 0 Fullscreen 1 Font 24/X11 Map View 50x35 Zoom Use 0% Tactical HUD 1 Map Filters NONE Filters NONE Steam 1 RUN: 92da6834-2b7b-40e6-bd6d-299a83a07a41